Cogmind - Beta 16 @@@ ROGUE MODE // 2025.12.18 @ 21:29:55 Player: PE-P51 Result: Destroyed by Y-45 Defender with Heavy Assault Rifle Performance ------------- Evolutions (0) 0 Regions Visited (2) 400 Robots Destroyed (23) 115 Value Destroyed (533) 533 Prototype IDs (0) 0 Alien Tech Used (0) 0 Bonus (0) 0 TOTAL SCORE: 1048 Bonus ------- None Cogmind --------- Core Integrity 0/250 Matter 213/300 Energy 125/125 System Corruption 0% Temperature Cool (36) Movement Core (150) Ox2 Location -10/Mines Parts ------- > --- POWER (1) -------- Light Ion Engine > --- PROPULSION (2) --- (None) > --- UTILITY (2) ------ Large Storage Unit Weight Redist. System > --- WEAPON (2) ------- Light Assault Rifle > --- INVENTORY (15) --- Light Ion Engine Aluminum Leg Aluminum Leg Aluminum Leg Wheel Compact Wheel Compact Wheel Flight Unit Small Storage Unit Huge Storage Unit Large Matter Pod (150) Light Assault Rifle Grenade Launcher Datajack Peak State ------------ > --- POWER ------------ Light Nuclear Core > --- PROPULSION ------- Aluminum Leg Aluminum Leg > --- UTILITY ---------- Large Storage Unit Weight Redist. System > --- WEAPON ----------- Light Cannon Light Cannon > --- INVENTORY -------- Ion Engine Light Ion Engine Wheel Compact Wheel Compact Wheel Small Storage Unit Huge Storage Unit Large Matter Pod Light Assault Rifle Light Assault Rifle Grenade Launcher [Rating: 11] Favorites ----------- Power Light Ion Engine Engine Light Ion Engine Power Core Light Nuclear Core Propulsion Aluminum Leg Leg Aluminum Leg Utility Large Storage Unit Device Weight Redist. System Storage Large Storage Unit Weapon Light Cannon Energy Gun Small Laser Ballistic Gun Light Assault Rifle Ballistic Cannon Light Cannon Launcher Grenade Launcher Build | -11 -10 -10 ------- Run | Yrd Mat Min Slots Evolved . | . . . Power . | . . . Propulsion . | . . . Utility . | . . . Weapon . | . . . Parts Attached 16 | . 11 5 Power 4 | . 2 2 Engine 3 | . 1 2 Core 1 | . 1 . Reactor . | . . . Propulsion 4 | . 3 1 Treads . | . . . Leg 4 | . 3 1 Wheel . | . . . Hover . | . . . Flight . | . . . Utility 4 | . 4 . Device 3 | . 3 . Storage 1 | . 1 . Processor . | . . . Hackware . | . . . Protection . | . . . Artifact . | . . . Weapon 4 | . 2 2 Energy Gun . | . . . Energy Cannon . | . . . Ballistic Gun 1 | . . 1 Ballistic Cannon 2 | . 2 . Launcher 1 | . . 1 Special Weapon . | . . . Impact Weapon . | . . . Slashing Weapon . | . . . Piercing Weapon . | . . . Special Melee Weapon . | . . . Unidentified Prototypes . | . . . Parts Lost 5 | . 1 4 Power 1 | . 1 . Propulsion 2 | . . 2 Utility . | . . . Weapon 2 | . . 2 Highest Loss Streak 4 | . 1 4 To Critical Strikes . | . . . Average Backups 11 | 6 9 13 Power 1 | 1 1 1 Propulsion 4 | 4 3 6 Utility 2 | . 2 3 Weapon 2 | 1 2 2 Tool/Special . | . . . Unused Backups 15 | . 4 11 Power 1 | . . 1 Propulsion 7 | . 2 5 Utility 3 | . . 3 Weapon 3 | . 2 1 Tool/Special 1 | . . 1 Average Slot Usage (%) 98 | . 96 100 Engine 12 | . 10 14 Core 1 | . 2 . Leg 27 | . 27 28 Device 12 | . 12 14 Storage 14 | . 14 14 Energy Gun 2 | . 5 . Ballistic Cannon 23 | . 22 24 Launcher 1 | . . 2 Peak Build Rating 11 | 6 11 9 Average Rating 8 | 6 7 8 On Entrance 7 | 6 6 9 Avg Prop Armor Cover (%) . | . . . Naked Turns . | . . . Heaviest Build 31 | 10 31 31 Greatest Support 26 | 20 26 26 Greatest Overweight (x) 1 | . 1 1 Average Overweight (x) . | . . 1 Largest Inventory Capacity 15 | 8 15 15 Average Capacity 14 | 8 13 15 Most Carried 15 | 6 12 15 Average Carried 11 | 6 9 14 Final Capacity 15 | 8 15 15 Final Carried 14 | 6 12 14 Class Distribution -------------------- 100% | Mutant Dominant Class ---------------- Mutant | -10/Materials Mutant | -10/Mines Resources | -11 -10 -10 ----------- Run | Yrd Mat Min Matter Collected 821 | 200 416 205 Remotely . | . . . Salvage Created 624 | . 500 124 Parts 38 | . 26 12 Haulers Intercepted 2 | . 2 . Recyclers Shooed 1 | . . 1 Parts Field Recycled . | . . . Retrieved Matter . | . . . Parts Self-Destructed . | . . . Prevented . | . . . Parts Restored . | . . . Kills | -11 -10 -10 ------- Run | Yrd Mat Min Combat Hostiles Destroyed 20 | . 12 8 Guns 2 | . 2 . Cannons 13 | . 10 3 AOE 5 | . . 5 Classes Destroyed 4 | . 4 . Hauler 2 | . 2 . Recycler 1 | . 1 . Swarmer 9 | . 3 6 Grunt 11 | . 9 2 Best Kill Streak 3 | . 3 3 Combat Bots Only 3 | . 3 3 Max Kills in Single Turn 2 | . 1 2 Gunslinging . | . . . Exploded 2 | . . 2 Melee . | . . . Uniques/NPCs Destroyed . | . . . Combat | -11 -10 -10 -------- Run | Yrd Mat Min Hostile Shots Fired 111 | . 71 40 Missed 23 | . 16 7 Hits 88 | . 55 33 Projectile 88 | . 55 33 Critical Strikes 1 | . . 1 Damage Taken 1077 | . 656 421 Core 253 | . 204 49 Absorbed by Shields . | . . . Core Remaining (%) 100 | 100 . . Volleys Fired 64 | . 50 14 Largest 2 | . 2 2 Hottest 80 | . 80 60 Shots Fired 121 | . 100 21 Gun 34 | . 30 4 Cannon 82 | . 70 12 Launcher 5 | . . 5 Special . | . . . Kinetic 86 | . 70 16 Thermal 30 | . 30 . Explosive 5 | . . 5 Electromagnetic . | . . . Robot Hit Streak 13 | . 13 6 Robot Miss Streak 2 | . 2 1 Penetration Max . | . . . Secondary Targets . | . . . Shots Hit Robots 76 | . 63 13 Core Hits 31 | . 21 10 Critical Kills . | . . . Critical Parts Destroyed . | . . . Critical Strikes 3 | . 2 1 Blast 3 | . 2 1 Melee Attacks . | . . . Impact . | . . . Slashing . | . . . Piercing . | . . . Sneak Attacks . | . . . Combat Hostiles . | . . . Follow-up Attacks . | . . . Damage Inflicted 1428 | . 917 511 Guns 261 | . 229 32 Cannons 808 | . 680 128 Explosions 328 | . . 328 Melee . | . . . Ramming 31 | . 8 23 Kinetic 840 | . 680 160 Thermal 229 | . 229 . Explosive 328 | . . 328 Electromagnetic . | . . . Impact . | . . . Slashing . | . . . Piercing . | . . . Highest Corruption . | . . . Average Corruption . | . . . Corruption Purged . | . . . Corruption Blocked . | . . . Overload Shots . | . . . Overflow Damage 29 | . 2 27 Projectiles 2 | . 2 . Explosions 27 | . . 27 Melee . | . . . Knockbacks 9 | . 9 . Impact . | . . . Kinetic 9 | . 9 . Secondary . | . . . Self-Inflicted Damage . | . . . Shots . | . . . Rammed . | . . . Targets Rammed 10 | . 2 8 Kicked 10 | . 2 8 Crushed . | . . . Highest Temperature 102 | . 102 27 Average Temperature 24 | . 26 11 Received Heat Transfer 465 | . 333 132 Siege Activations . | . . . Martial Activations . | . . . Shielding Activations . | . . . Robots Disrupted . | . . . Combat Hostiles . | . . . Robots Corrupted . | . . . Combat Hostiles . | . . . Parts Fried . | . . . Impact Corruptions . | . . . Robots Melted . | . . . Combat Hostiles . | . . . Parts Melted 1 | . 1 . Heat Transferred 525 | . 525 . Parts Sabotaged . | . . . Parts Stolen . | . . . Parts Stripped . | . . . Power Chain Reactions . | . . . Alert | -11 -10 -10 ------- Run | Yrd Mat Min Maximum Alert Level 1 | . 1 . Low Security (%) 88 | 100 78 100 Level 1 11 | . 21 . Level 2 . | . . . Level 3 . | . . . Level 4 . | . . . Level 5 . | . . . High Security . | . . . Max Security . | . . . Peak Influence 268 | . 268 112 Initial 87 | . . 87 Average 64 | . 84 43 Influence Increases 729 | . 512 217 Destroy 0b10 Robot/C 400 | . 240 160 Destroy 0b10 Robot/NC 15 | . 15 . Destroy Leader 84 | . 54 30 Successful Hack 5 | . 5 . Select Force Hacks 30 | . 30 . Disable Machine 30 | . 30 . Destroy Structure 30 | . 3 27 Lose Combat Pursuer 135 | . 135 . Influence Decreases 724 | . 287 437 Entered New Map 138 | . . 138 Time Decay 536 | . 277 259 Lost Part 50 | . 10 40 Squads Dispatched 3 | . 3 . Investigation 2 | . 2 . Extermination . | . . . Reinforcement 1 | . 1 . Assault . | . . . Garrison . | . . . Intercept . | . . . Searches Triggered . | . . . Construction Impeded . | . . . Haulers Reinforced . | . . . Active Scanning Responses . | . . . Cargo Convoy Interrupts . | . . . Stealth | -11 -10 -10 --------- Run | Yrd Mat Min Distress Signals . | . . . Communications Jammed . | . . . Distress Signals . | . . . Times Spotted 36 | . 26 10 Peak Tracking Total 5 | . 5 3 Tactical Retreats 8 | . 8 . Traps | -11 -10 -10 ------- Run | Yrd Mat Min Traps Triggered 3 | . 3 . Indirectly . | . . . Trap Hack Attempts . | . . . Triggered . | . . . Disarmed . | . . . Reprogrammed . | . . . Reused . | . . . Traps Extracted . | . . . Installed . | . . . Triggered . | . . . Machines | -11 -10 -10 ---------- Run | Yrd Mat Min Machines Disabled 2 | . 2 . Max in Single Turn 1 | . 1 . Machines Repaired . | . . . Machines Dismantled . | . . . Machines Sabotaged . | . . . Overloaded Fab Kills . | . . . Hacking | -11 -10 -10 --------- Run | Yrd Mat Min Machines Accessed 3 | . 3 . Terminals 2 | . 2 . Fabricators . | . . . Repair Stations . | . . . Recycling Units 1 | . 1 . Scanalyzers . | . . . Garrison Access . | . . . Total Hacks 6 | . 6 . Successful 3 | . 3 . Failed 3 | . 3 . Catastrophic . | . . . Database Lockouts . | . . . Manual 5 | . 5 . Terminals 3 | . 3 . Fabricators . | . . . Repair Stations . | . . . Recycling Units 3 | . 3 . Scanalyzers . | . . . Garrison Access . | . . . Terminal Hacks 1 | . 1 . Robot Analysis 1 | . 1 . Fabricator Hacks . | . . . Repair Station Hacks . | . . . Recycling Unit Hacks . | . . . Scanalyzer . | . . . Garrison Access Hacks . | . . . Unauthorized Hacks 2 | . 2 . Terminals 1 | . 1 . Skim 1 | . 1 . Fabricators . | . . . Repair Stations . | . . . Recycling Units 1 | . 1 . Tunnel 1 | . 1 . Scanalyzers . | . . . Garrison Access . | . . . Data Cores Recovered . | . . . Used . | . . . Hacking Detections 2 | . 2 . Full Trace Events . | . . . Feedback Events . | . . . Feedback Blocked . | . . . Robot Schematics Acquired . | . . . Robots Built . | . . . Authchips . | . . . Time . | . . . Total Robot Build Rating . | . . . Part Schematics Acquired . | . . . Parts Built . | . . . Authchips . | . . . Time . | . . . Total Part Build Rating . | . . . Part Studies Acquired . | . . . Parts Repaired . | . . . Time . | . . . Parts Recycled . | . . . Recycled Matter . | . . . Retrieved Matter . | . . . Retrieved Components . | . . . Parts Scanalyzed . | . . . Part Schematics Acquired . | . . . Parts Damaged . | . . . Bothacking | -11 -10 -10 ------------ Run | Yrd Mat Min Used RIF Installer . | . . . Robots Hacked . | . . . Non-combat . | . . . Combat . | . . . Robot Hacks Applied . | . . . Relay Couplers Released . | . . . Fabnet Peak Effective % . | . . . Robots Rewired . | . . . Allies Hacked . | . . . Hacks Repelled . | . . . Allies | -11 -10 -10 -------- Run | Yrd Mat Min Total Allies . | . . . Largest Group . | . . . Highest-Rated Group . | . . . Highest-Rated Ally . | . . . Total Orders . | . . . Ally Attacks . | . . . Total Damage . | . . . Kills . | . . . Allies Corrupted . | . . . Allies Melted . | . . . Intel | -11 -10 -10 ------- Run | Yrd Mat Min Active Infowar (turns) 63 | . 63 . Structural 63 | . 63 . Robot Analysis Total 1 | . 1 . Derelict Logs Recovered . | . . . Drone Launches . | . . . Drone Recoveries . | . . . Exploration | -11 -10 -10 ------------- Run | Yrd Mat Min Turns Passed 1647 | 2 851 794 Spaces Moved 768 | 2 389 377 Core . | . . . Treads . | . . . Legs 768 | 2 389 377 Wheels . | . . . Hover . | . . . Flight . | . . . Fastest Speed 120 | 120 120 190 Average Speed 176 | 120 163 190 Slowest Speed 190 | 120 190 190 Overloaded Moves . | . . . Propulsion Burnouts . | . . . Robots Hopped . | . . . Potential Cave-ins . | . . . Cave-ins Triggered . | . . . Exploration Rate (%) 49 | 2 67 78 Regions Visited 2 Branch Regions 1 Pre-discovered Areas 1 | . 1 . Known Exits Taken . | . . . Unknown Exits Taken 2 | 1 1 . Scrap Searched 1 | . . 1 Spaces Dug 6 | . . 6 Terrain Destroyed 25 | . . 25 Melee . | . . . Projectile . | . . . AOE 25 | . . 25 Terrain Rammed . | . . . Walls Destroyed . | . . . Machines Disabled . | . . . Actions | -11 -10 -10 --------- Run | Yrd Mat Min Total 923 | 1 497 425 Wait 51 | . 36 15 Move 766 | 1 388 377 Hop . | . . . Pick Up 7 | . 5 2 Fast Attach 5 | . 5 . Attach 2 | . 1 1 Detach . | . . . Swap 15 | . 8 7 Drop 3 | . 2 1 Fire 64 | . 50 14 Melee . | . . . Ram . | . . . Kick 10 | . 2 8 Crush . | . . . Escape Stasis . | . . . Rewire . | . . . Trap . | . . . Miscellaneous . | . . . Route ------- -11/Scrapyard -10/Materials (discovered 3 exits: [*Mat x2] / [*Min]) -10/Mines (discovered 1 exit: [*Mat]) History --------- Turn | Location | Event 1 | -11/Scrapyard | Discovered new exit (range 1) 3 | -11/Scrapyard | Entered Materials 53 | -10/Materials | Discovered new exit (range 13) 223 | -10/Materials | Discovered new exit (range 16) 305 | -10/Materials | Build established: Mutant 503 | -10/Materials | Derelicts attacked the area 513 | -10/Materials | Core integrity fell below 50% 571 | -10/Materials | Discovered new exit (range 12) 715 | -10/Materials | Core integrity fell below 20% 854 | -10/Materials | Entered Mines 974 | -10/Mines | Found DCF Scrap (15 items) 1090 | -10/Mines | Discovered new exit (range 9) 1648 | -10/Mines | Destroyed by Y-45 Defender with Heavy Assault Rifle Last Messages --------------- 01481_ U-05 Engineer lays Concrete. 01486_ Acquired 6 matter. 01487_ U-05 Engineer builds a Wall. 01490_ R-06 Scavenger collects Lgt. Assault Rifle. 01492_ U-05 Engineer lays Concrete. 01496_ U-05 Engineer builds a Wall. 01500_ U-05 Engineer lays Concrete. 01502_ U-05 Engineer builds a Wall. 01510_ T-07 Excavator is excavating. 01533_ K-01 Serf collects debris. 01542_ U-05 Engineer lays Concrete. 01543_ T-07 Excavator is excavating. 01544_ U-05 Engineer lays Concrete. 01547_ T-07 Excavator is excavating. 01613_ Lgt. Cannon destroyed. 01624_ Kicked K-01 Serf out of the way. 01642_ Aluminum Leg destroyed. 01645_ Critical hit (Burn: +37). 01645_ Aluminum Leg destroyed. 01648_ Lgt. Cannon destroyed. Map ----- +----------------------------------------------------+ | ??????????????????????????????????????? | | ??????????????????????????????????????? | | ??????????????????????????????????????? | | ??????????????????????????????????????? | | ??????????????????????????????????????? | | ??????????????????????????????????????? | | ??????????????????????????????????????? | | ??????????????????????????????????????? | | ??????????????????????????????????????? | | ??????????????????????????????????????? | | #######???????????????????????????????? | | #???????????????????????????????? | | #???????????????????????????????? | | #???????????????????????????????? | | #???????????????????????????????? | | """ #???????????????????????????????? | | """ #???????????????????????????????? | | """ #????????????????????????#####??? | | #????????????????????????" "##?? | | #######????????????????????????! |!#?? | | ???????????????????????????????! !!#?? | | ????????????????????????###???# #??? | | ##?????????????????????? #?## ###? | | #??????????????????????# #?# #? | | #??????????????????????# #?# #? | | #??????????????????????#@### #? | | ?????????????????????#%Y% #? | | ## #????????????????????##### #? | | ?? #????????????????????????# #? | | ?? #????????????????????????# #? | | ?? ?????????????????????????## ######? | | ?# #???????????####??????????# #?????? | | ?# #?????????### ##?????????# #?????? | | ? #???????### ##????????# #?????? | | ?# #?????## ####?????# #?????? | | ?# #???## ##????# #?????? | | ?# #??## ##???# #?????? | | ## #?## ##### #?????? | | ### ## #?????? | | ?# ####?????? | | ## #?# #????????? | | #??# #?# #????????? | | ##???# ### #????????? | | [ ##????# #????????? | | ### =##???## #####????????? | | ##?# #???# ##????????????? | | #??## #???# ##???###???????? | | ##??# #???## ##?## ##??????? | | ##?## ##???## ## #??????? | | ### ##??## #???????? | +----------------------------------------------------+ Best States ------------- Heat Dissipation 35 Energy Generation 14 Energy Capacity 250 Matter Stores 300 Matter Capacity 300 Sight Range 16 Terrain Scan Density 10 Additional Mass Support 6 Evasion (%) 55 Item Schematics ----------------- None Robot Schematics ------------------ None Fabricated ------------ Nothing Repaired ---------- Nothing Studied --------- None Alien Tech Used ----------------- None Achievements -------------- None Challenges ------------ None Game ------ Seed SurgeSiegeExtrapolator Manual? 0 Play Time 00:07:50 Cumulative 199.9 hours Start 2025.12.18 @ 21:24:10 End 2025.12.18 @ 21:29:55 Sessions 1 Manual Loads 0 Difficulty Rogue Special Mode None Game No. 275 Rogue 274 Adventurer 1 Explorer 0 Win Type - Total 2 Types 1/0/0/1/0/0/0/0/0/0 Lore% 66 Gallery% 61 Achievement% 54 Wizard Run 0 Options --------- Layout 0 ASCII 0 Keyboard 0 Movement Numpad Keybinds 0 Fullscreen 1 Font 24/Smallcaps Map View 76x50 Zoom Use 0% Tactical HUD 1 Map Filters NONE Filters NONE Steam 1 RUN: 3ee884d9-1830-46c4-b9a0-9c9ddb0eca09